fUST/lending_fUST_20250604
["ID","MTS","AMOUNT","RATE_DAILY","PERIOD"]
[364257182,1749051044192,-527.96,0.00017534,2]
[364257184,1749051044202,-440.0,0.00017534,2]
[364257186,1749051044211,-2224.68,0.00017534,2]
[364257189,1749051044221,-440.0,0.00017534,2]
[364257191,1749051044230,-440.0,0.00017534,2]
[364257202,1749051044329,-440.0,0.00017534,2]
[364257204,1749051044338,-888.49,0.00017534,2]
[364257206,1749051044348,-440.0,0.00017534,2]
[364257208,1749051044357,-1592.06,0.00017534,2]
[364257210,1749051044366,-440.0,0.00017534,2]
[364257212,1749051044375,-390.0,0.00017534,2]
[364257214,1749051044384,-639.54,0.00017534,2]
[364257216,1749051044394,-3971.98,0.00017534,2]
[364257218,1749051044403,-2882.92,0.00017534,2]
[364257220,1749051044412,-3615.91,0.00017534,2]
[364257222,1749051044422,-3674.45,0.00017534,2]
[364257224,1749051044431,-440.0,0.00017534,2]
[364257226,1749051044441,-705.08,0.00017534,2]
[364257228,1749051044451,-611.86,0.00017534,2]
[364257230,1749051044460,-440.0,0.00017534,2]
[364257232,1749051044470,-440.0,0.00017534,2]
[364257234,1749051044479,-440.0,0.00017534,2]
[364257236,1749051044488,-440.0,0.00017534,2]
[364257238,1749051044498,-892.16,0.00017534,2]
[364257240,1749051044507,-440.0,0.00017534,2]
[364257242,1749051044517,-440.0,0.00017534,2]
[364257244,1749051044526,-440.0,0.00017534,2]
[364257246,1749051044536,-440.0,0.00017534,2]
[364257248,1749051044546,-530.99,0.00017534,2]
[364257250,1749051044555,-440.0,0.00017534,2]
[364257252,1749051044566,-1055.45,0.00017534,2]
[364257254,1749051044575,-440.0,0.00017534,2]
[364257256,1749051044584,-440.0,0.00017534,2]
[364257258,1749051044594,-440.0,0.00017534,2]
[364257260,1749051044603,-440.0,0.00017534,2]
[364257262,1749051044613,-440.0,0.00017534,2]
[364257264,1749051044623,-440.0,0.00017534,2]
[364257266,1749051044632,-440.0,0.00017534,2]
[364257268,1749051044641,-3430.68,0.00017534,2]
[364257270,1749051044650,-514.25,0.00017534,2]
[364257272,1749051044659,-600.44,0.00017534,2]
[364257274,1749051044668,-687.21,0.00017534,2]
[364257276,1749051044678,-649.54,0.00017534,2]
[364257278,1749051044687,-564.16,0.00017534,2]
[364257280,1749051044697,-373.27,0.00017534,2]
[364257282,1749051044706,-1711.74,0.00017534,2]
[364257284,1749051044716,-440.0,0.00017534,2]
[364257286,1749051044725,-440.0,0.00017534,2]
[364257288,1749051044735,-440.0,0.00017534,2]
[364257289,1749051044745,-440.0,0.00017534,2]
[364257291,1749051044755,-500.0,0.00017659,2]
[364257294,1749051044765,-500.0,0.00017659,2]
[364257296,1749051044775,-500.0,0.00017659,2]
[364257298,1749051044785,-338.80950541,0.00017659,2]
[364257300,1749051044795,-500.0,0.00017659,2]
[364257302,1749051044805,-500.0,0.00017659,2]
[364257304,1749051044819,-502.24210544,0.00017659,2]
[364257306,1749051044829,-500.0,0.00017659,2]
[364257308,1749051044839,-500.0,0.00017659,2]
[364257310,1749051044849,-445.06727419,0.00017683,2]
[364257312,1749051044858,-500.0,0.00017683,2]
[364257314,1749051044868,-500.0,0.00017683,2]
[364257316,1749051044879,-500.79122663,0.00017683,2]
[364257318,1749051044889,-500.0,0.00017703,2]
[364257319,1749051044898,-500.0,0.00017703,2]
[364257321,1749051044910,-2339.57047473,0.00017728,2]
[364257324,1749051044922,-500.0,0.000178,2]
[364257326,1749051044932,-500.0,0.000178,2]
[364257328,1749051044943,-500.0,0.000178,2]
[364257329,1749051044953,-501.42318072,0.000178,2]
[364257331,1749051044962,-500.0,0.000178,2]
[364257333,1749051044972,-461.53,0.00017808,2]
[364257335,1749051044981,-440.0,0.00017808,2]
[364257337,1749051044993,-440.0,0.00017808,2]
[364257339,1749051045003,-440.0,0.00017808,2]
[364257341,1749051045013,-210.0,0.00017808,2]
[364257344,1749051045023,-617.26,0.00017808,2]
[364257346,1749051045032,-440.0,0.00017808,2]
[364257348,1749051045042,-907.87,0.00017808,2]
[364257349,1749051045051,-440.0,0.00017808,2]
[364257352,1749051045067,-440.0,0.00017808,2]
[364257353,1749051045079,-440.0,0.00017808,2]
[364257356,1749051045092,-440.0,0.00017808,2]
[364257357,1749051045106,-727.8,0.00017808,2]
[364257360,1749051045116,-440.0,0.00017808,2]
[364257362,1749051045125,-1061.63,0.00017808,2]
[364257364,1749051045135,-440.0,0.00017808,2]
[364257366,1749051045145,-1125.54,0.00017808,2]
[364257367,1749051045156,-440.0,0.00017808,2]
[364257370,1749051045167,-440.0,0.00017808,2]
[364257372,1749051045177,-440.0,0.00017808,2]
[364257373,1749051045188,-440.0,0.00017808,2]
[364257376,1749051045199,-440.0,0.00017808,2]
[364257377,1749051045209,-527.96,0.00017808,2]
[364257379,1749051045221,-440.0,0.00017808,2]
[364257381,1749051045233,-2224.68,0.00017808,2]
[364257383,1749051045244,-440.0,0.00017808,2]
[364257385,1749051045256,-440.0,0.00017808,2]
[364257387,1749051045267,-440.0,0.00017808,2]
[364257389,1749051045278,-888.49,0.00017808,2]
[364257391,1749051045290,-440.0,0.00017808,2]
[364257393,1749051045302,-1592.06,0.00017808,2]
[364257395,1749051045321,-440.0,0.00017808,2]
[364257397,1749051045332,-639.54,0.00017808,2]
[364257399,1749051045343,-3971.98,0.00017808,2]
[364257401,1749051045357,-2882.92,0.00017808,2]
[364257403,1749051045373,-3615.91,0.00017808,2]
[364257405,1749051045385,-3674.45,0.00017808,2]
[364257407,1749051045396,-440.0,0.00017808,2]
[364257409,1749051045406,-705.08,0.00017808,2]
[364257411,1749051045417,-611.86,0.00017808,2]
[364257414,1749051045439,-440.0,0.00017808,2]
[364257417,1749051045450,-440.0,0.00017808,2]
[364257419,1749051045460,-440.0,0.00017808,2]
[364257421,1749051045471,-440.0,0.00017808,2]
[364257423,1749051045481,-892.16,0.00017808,2]
[364257425,1749051045492,-380.99833517,0.00017808,2]
[364257427,1749051045503,-440.0,0.00017808,2]
[364257429,1749051045513,-440.0,0.00017808,2]
[364257431,1749051045523,-440.0,0.00017808,2]
[364257433,1749051045533,-530.99,0.00017808,2]
[364257435,1749051045542,-440.0,0.00017808,2]
[364257437,1749051045553,-1055.45,0.00017808,2]
[364257439,1749051045569,-440.0,0.00017808,2]
[364257441,1749051045579,-440.0,0.00017808,2]
[364257443,1749051045589,-440.0,0.00017808,2]
[364257445,1749051045600,-440.0,0.00017808,2]
[364257447,1749051045610,-440.0,0.00017808,2]
[364257449,1749051045620,-337.42542019,0.00017808,2]
[364257451,1749051045630,-440.0,0.00017808,2]
[364257453,1749051045640,-3430.68,0.00017808,2]
[364257455,1749051045650,-514.25,0.00017808,2]
[364257457,1749051045660,-600.44,0.00017808,2]
[364257459,1749051045669,-687.21,0.00017808,2]
[364257462,1749051045679,-649.54,0.00017808,2]
[364257464,1749051045689,-564.16,0.00017808,2]
[364257466,1749051045698,-1711.74,0.00017808,2]
[364257468,1749051045708,-440.0,0.00017808,2]
[364257470,1749051045718,-440.0,0.00017808,2]
[364257472,1749051045728,-440.0,0.00017808,2]
[364257474,1749051045738,-440.0,0.00017808,2]
[364257476,1749051045748,-500.0,0.00017833,2]
[364257478,1749051045757,-500.0,0.00017833,2]
[364257480,1749051045767,-500.0,0.00017869,2]
[364257482,1749051045778,-500.0,0.00017869,2]
[364257484,1749051045788,-500.0,0.00017871,2]
[364257486,1749051045798,-500.0,0.00017948,2]
[364257488,1749051045808,-1000.0,0.00017948,2]
[364257490,1749051045824,-500.0,0.00017948,2]
[364257492,1749051045834,-1000.0,0.00017948,2]
[364257495,1749051045844,-420.0,0.00017962,2]
[364257498,1749051045855,-420.0,0.00017962,2]
[364257501,1749051045869,-400.0,0.00017962,2]
[364257504,1749051045880,-2339.57047473,0.00018003,2]
[364257507,1749051045890,-1680.0,0.00018051,2]
[364257510,1749051045901,-440.0,0.00018082,2]
[364257512,1749051045911,-440.0,0.00018082,2]
[364257513,1749051045924,-440.0,0.00018082,2]
[364257516,1749051045934,-617.26,0.00018082,2]
[364257518,1749051045945,-440.0,0.00018082,2]
[364257520,1749051045954,-907.87,0.00018082,2]
[364257522,1749051045964,-440.0,0.00018082,2]
[364257524,1749051045973,-440.0,0.00018082,2]
[364257526,1749051045983,-440.0,0.00018082,2]
[364257528,1749051045993,-440.0,0.00018082,2]
[364257530,1749051046004,-727.8,0.00018082,2]
[364257532,1749051046013,-440.0,0.00018082,2]
[364257534,1749051046023,-1061.63,0.00018082,2]
[364257536,1749051046033,-440.0,0.00018082,2]
[364257538,1749051046043,-1125.54,0.00018082,2]
[364257540,1749051046053,-440.0,0.00018082,2]
[364257542,1749051046066,-440.0,0.00018082,2]
[364257544,1749051046076,-440.0,0.00018082,2]
[364257546,1749051046086,-440.0,0.00018082,2]
[364257548,1749051046096,-440.0,0.00018082,2]
[364257550,1749051046106,-527.96,0.00018082,2]
[364257552,1749051046116,-440.0,0.00018082,2]
[364257554,1749051046126,-2224.68,0.00018082,2]
[364257556,1749051046136,-440.0,0.00018082,2]
[364257558,1749051046146,-440.0,0.00018082,2]
[364257560,1749051046156,-291.18017293,0.00018082,2]
[364257562,1749051046165,-888.49,0.00018082,2]
[364257564,1749051046175,-538.72,0.00018082,2]
[364257566,1749051046184,-1592.06,0.00018082,2]
[364257568,1749051046194,-440.0,0.00018082,2]
[364257570,1749051046204,-639.54,0.00018082,2]
[364257572,1749051046214,-3971.98,0.00018082,2]
[364257574,1749051046224,-2882.92,0.00018082,2]
[364257576,1749051046234,-3615.91,0.00018082,2]
[364257578,1749051046244,-3674.45,0.00018082,2]
[364257580,1749051046254,-440.0,0.00018082,2]
[364257582,1749051046264,-705.08,0.00018082,2]
[364257584,1749051046274,-611.86,0.00018082,2]
[364257586,1749051046283,-440.0,0.00018082,2]
[364257588,1749051046298,-440.0,0.00018082,2]
[364257590,1749051046308,-440.0,0.00018082,2]
[364257592,1749051046321,-440.0,0.00018082,2]
[364257594,1749051046331,-892.16,0.00018082,2]
[364257596,1749051046341,-347.77199809,0.00018082,2]
[364257609,1749051046351,-440.0,0.00018082,2]
[364257611,1749051046467,-440.0,0.00018082,2]
[364257613,1749051046477,-530.99,0.00018082,2]
[364257615,1749051046487,-440.0,0.00018082,2]
[364257617,1749051046496,-1055.45,0.00018082,2]
[364257619,1749051046506,-440.0,0.00018082,2]
[364257621,1749051046515,-319.77843173,0.00018082,2]
[364257623,1749051046524,-440.0,0.00018082,2]
[364257625,1749051046534,-440.0,0.00018082,2]
[364257627,1749051046543,-440.0,0.00018082,2]
[364257629,1749051046553,-440.0,0.00018082,2]
[364257632,1749051046566,-3430.68,0.00018082,2]
[364257634,1749051046578,-514.25,0.00018082,2]
[364257635,1749051046588,-600.44,0.00018082,2]
[364257638,1749051046598,-687.21,0.00018082,2]
[364257640,1749051046607,-649.54,0.00018082,2]
[364257641,1749051046617,-564.16,0.00018082,2]
[364257643,1749051046627,-1711.74,0.00018082,2]
[364257646,1749051046636,-386.0,0.00018082,2]
[364257648,1749051046646,-440.0,0.00018082,2]
[364257650,1749051046655,-440.0,0.00018082,2]
[364257652,1749051046665,-722.72237764,0.00018085,2]
[364257654,1749051046675,-1000.0,0.00018207,2]
[364257655,1749051046684,-823.26948215,0.00018207,2]
[364257657,1749051046694,-510.03104256,0.00018207,2]
[364257659,1749051046703,-2339.57047473,0.00018279,2]
[364257661,1749051046712,-506.85366716,0.00018348,2]
[364257663,1749051046722,-594.39988982,0.00018348,2]
[364257665,1749051046731,-500.0,0.00018354,2]
[364257667,1749051046740,-500.0,0.00018354,2]
[364257669,1749051046751,-500.0,0.00018354,2]
[364257671,1749051046763,-155.82592974,0.00018354,2]
[364257673,1749051046773,-500.0,0.00018354,2]
[364257675,1749051046783,-500.0,0.00018354,2]
[364257678,1749051046792,-2457.38859043,0.00018354,2]
[364257679,1749051046801,-500.0,0.00018354,2]
[364257682,1749051046815,-500.0,0.00018354,2]
[364257684,1749051046825,-500.0,0.00018354,2]
[364257686,1749051046834,-500.0,0.00018354,2]
[364257688,1749051046843,-239.7260795,0.00018354,2]
[364257690,1749051046854,-500.0,0.00018354,2]
[364257692,1749051046864,-500.0,0.00018354,2]
[364257694,1749051046873,-2457.38859043,0.00018354,2]
[364257696,1749051046883,-500.0,0.00018354,2]
[364257698,1749051046893,-500.0,0.00018354,2]
[364257700,1749051046903,-500.0,0.00018354,2]
[364257702,1749051046917,-2457.38859043,0.00018354,2]
[364257704,1749051046927,-237.45530026,0.00018354,2]
[364257706,1749051046936,-500.0,0.00018354,2]
[364257708,1749051046946,-500.0,0.00018354,2]
[364257709,1749051046956,-500.0,0.00018354,2]
[364257712,1749051046967,-2457.38859043,0.00018354,2]
[364257713,1749051046977,-500.0,0.00018354,2]
[364257716,1749051046987,-2457.38859043,0.00018354,2]
[364257718,1749051046998,-500.0,0.00018354,2]
[364257720,1749051047008,-500.0,0.00018354,2]
[364257722,1749051047017,-2457.38859043,0.00018354,2]
[364257724,1749051047028,-2457.38859043,0.00018354,2]
[364257726,1749051047038,-255.73873115,0.00018354,2]
[364257728,1749051047047,-2457.38859043,0.00018354,2]
[364257730,1749051047057,-500.0,0.00018354,2]
[364257732,1749051047068,-2457.38859043,0.00018354,2]
[364257734,1749051047078,-500.0,0.00018354,2]
[364257736,1749051047088,-2457.38859043,0.00018354,2]
[364257738,1749051047098,-500.0,0.00018354,2]
[364257740,1749051047108,-2457.38859043,0.00018354,2]
[364257742,1749051047118,-2457.38859043,0.00018354,2]
[364257744,1749051047127,-2457.38859043,0.00018354,2]
[364257746,1749051047137,-2457.38859043,0.00018354,2]
[364257748,1749051047146,-2457.38859043,0.00018354,2]
[364257750,1749051047156,-2457.38859043,0.00018354,2]
[364257752,1749051047167,-2457.38859043,0.00018354,2]
[364257754,1749051047177,-440.0,0.00018356,2]
[364257756,1749051047189,-297.63231252,0.00018356,2]
[364257759,1749051047199,-304.318764,0.00018356,2]
[364257760,1749051047209,-617.26,0.00018356,2]
[364257762,1749051047218,-440.97539332,0.00018356,2]
[364257764,1749051047228,-907.87,0.00018356,2]
[364257766,1749051047237,-360.0,0.00018356,2]
[364257768,1749051047247,-302.19381492,0.00018356,2]
[364257770,1749051047256,-440.0,0.00018356,2]
[364257772,1749051047266,-310.0,0.00018356,2]
[364257775,1749051047277,-727.8,0.00018356,2]
[364257776,1749051047286,-197.29747007,0.00018356,2]
[364257778,1749051047295,-1061.63,0.00018356,2]
[364257780,1749051047305,-440.0,0.00018356,2]
[364257782,1749051047318,-1125.54,0.00018356,2]
[364257785,1749051047328,-222.62763877,0.00018356,2]
[364257787,1749051047337,-367.01542089,0.00018356,2]
[364257789,1749051047347,-400.82,0.00018356,2]
[364257791,1749051047358,-440.0,0.00018356,2]
[364257793,1749051047368,-440.0,0.00018356,2]
[364257795,1749051047377,-527.96,0.00018356,2]
[364257797,1749051047388,-440.0,0.00018356,2]
[364257799,1749051047398,-2224.68,0.00018356,2]
[364257801,1749051047407,-440.0,0.00018356,2]
[364257803,1749051047417,-440.0,0.00018356,2]
[364257805,1749051047426,-888.49,0.00018356,2]
[364257807,1749051047436,-1592.06,0.00018356,2]
[364257809,1749051047446,-440.0,0.00018356,2]
[364257811,1749051047455,-639.54,0.00018356,2]
[364257813,1749051047465,-3971.98,0.00018356,2]
[364257815,1749051047475,-2882.92,0.00018356,2]
[364257817,1749051047485,-3615.91,0.00018356,2]
[364257819,1749051047495,-3674.45,0.00018356,2]
[364257821,1749051047505,-440.0,0.00018356,2]
[364257823,1749051047514,-705.08,0.00018356,2]
[364257825,1749051047524,-611.86,0.00018356,2]
[364257827,1749051047533,-440.0,0.00018356,2]
[364257829,1749051047543,-440.0,0.00018356,2]
[364257831,1749051047552,-440.0,0.00018356,2]
[364257833,1749051047563,-383.21183067,0.00018356,2]
[364257835,1749051047573,-892.16,0.00018356,2]
[364257837,1749051047583,-440.0,0.00018356,2]
[364257839,1749051047593,-440.0,0.00018356,2]
[364257841,1749051047603,-530.99,0.00018356,2]
[364257843,1749051047612,-440.0,0.00018356,2]
[364257845,1749051047622,-1055.45,0.00018356,2]
[364257847,1749051047632,-341.42057765,0.00018356,2]
[364257849,1749051047642,-440.0,0.00018356,2]
[364257851,1749051047652,-440.0,0.00018356,2]
[364257853,1749051047668,-440.0,0.00018356,2]
[364257855,1749051047678,-440.0,0.00018356,2]
[364257857,1749051047687,-3430.68,0.00018356,2]
[364257859,1749051047698,-514.25,0.00018356,2]
[364257861,1749051047707,-600.44,0.00018356,2]
[364257863,1749051047716,-687.21,0.00018356,2]
[364257865,1749051047726,-649.54,0.00018356,2]
[364257867,1749051047735,-564.16,0.00018356,2]
[364257869,1749051047745,-1711.74,0.00018356,2]
[364257871,1749051047754,-440.0,0.00018356,2]
[364257873,1749051047764,-440.0,0.00018356,2]
[364257875,1749051047774,-1500.0,0.00018496,2]
[364257877,1749051047783,-1500.0,0.00018496,2]
[364257879,1749051047793,-2339.57047473,0.00018555,2]
[364257881,1749051047802,-12672.94222187,0.00018575,2]
[364257883,1749051047814,-160.0,0.00018577,2]
[364257885,1749051047824,-160.0,0.00018577,2]
[364257887,1749051047833,-229.45591648,0.00018577,2]
[364257889,1749051047843,-160.0,0.00018577,2]
[364257891,1749051047855,-423.69433488,0.00018577,2]
[364257893,1749051047866,-160.0,0.00018577,2]
[364257896,1749051047875,-842.5625,0.00018577,2]
[364257897,1749051047885,-440.0,0.0001863,2]
[364257900,1749051047896,-617.26,0.0001863,2]
[364257902,1749051047906,-907.87,0.0001863,2]
[364257904,1749051047917,-440.0,0.0001863,2]
[364257906,1749051047927,-727.8,0.0001863,2]
[364257907,1749051047936,-1061.63,0.0001863,2]
[364257909,1749051047945,-440.0,0.0001863,2]
[364257911,1749051047955,-1125.54,0.0001863,2]
[364257913,1749051047965,-270.5044559,0.0001863,2]
[364257915,1749051047974,-440.0,0.0001863,2]
[364257917,1749051047984,-527.96,0.0001863,2]
[364257919,1749051047995,-440.0,0.0001863,2]
[364257921,1749051048005,-2224.68,0.0001863,2]
[364257923,1749051048017,-440.0,0.0001863,2]
[364257925,1749051048030,-440.0,0.0001863,2]
[364257927,1749051048039,-888.49,0.0001863,2]
[364257929,1749051048049,-1592.06,0.0001863,2]
[364257931,1749051048059,-440.0,0.0001863,2]
[364257933,1749051048071,-639.54,0.0001863,2]
[364257935,1749051048082,-3971.98,0.0001863,2]
[364257936,1749051048092,-2882.92,0.0001863,2]
[364257937,1749051048102,-3615.91,0.0001863,2]
[364257938,1749051048112,-3674.45,0.0001863,2]
[364257939,1749051048121,-440.0,0.0001863,2]
[364257940,1749051048132,-705.08,0.0001863,2]
[364257941,1749051048142,-611.86,0.0001863,2]
[364257942,1749051048152,-440.0,0.0001863,2]
[364257943,1749051048162,-440.0,0.0001863,2]
[364257944,1749051048172,-440.0,0.0001863,2]
[364257945,1749051048182,-892.16,0.0001863,2]
[364257946,1749051048192,-440.0,0.0001863,2]
[364257947,1749051048201,-440.0,0.0001863,2]
[364257948,1749051048212,-530.99,0.0001863,2]
[364257950,1749051048223,-440.0,0.0001863,2]
[364257952,1749051048237,-1055.45,0.0001863,2]
[364257954,1749051048247,-440.0,0.0001863,2]
[364257956,1749051048257,-440.0,0.0001863,2]
[364257967,1749051048355,-440.0,0.0001863,2]
[364257969,1749051048365,-263.05673029,0.0001863,2]
[364257971,1749051048376,-514.25,0.0001863,2]
[364257973,1749051048386,-600.44,0.0001863,2]
[364257975,1749051048396,-3430.68,0.0001863,2]
[364257977,1749051048405,-687.21,0.0001863,2]
[364257979,1749051048415,-649.54,0.0001863,2]
[364257981,1749051048425,-564.16,0.0001863,2]
[364257983,1749051048435,-1711.74,0.0001863,2]
[364257985,1749051048446,-440.0,0.0001863,2]
[364257986,1749051048456,-289.59614501,0.0001863,2]
[364257988,1749051048466,-722.72237764,0.00018684,2]
[364257990,1749051048476,-500.0,0.00018755,2]
[364257992,1749051048487,-2339.57047473,0.00018831,2]
[364257994,1749051048497,-160.0,0.00018903,2]
[364257996,1749051048508,-455.27775627,0.00018904,2]
[364257999,1749051048518,-617.26,0.00018904,2]
[364258001,1749051048528,-907.87,0.00018904,2]
[364258003,1749051048538,-440.0,0.00018904,2]
[364258004,1749051048547,-727.8,0.00018904,2]
[364258006,1749051048557,-1061.63,0.00018904,2]
[364258008,1749051048569,-440.0,0.00018904,2]
[364258010,1749051048579,-1125.54,0.00018904,2]
[364258012,1749051048589,-440.0,0.00018904,2]
[364258014,1749051048599,-527.96,0.00018904,2]
[364258016,1749051048610,-440.0,0.00018904,2]
[364258018,1749051048619,-2224.68,0.00018904,2]
[364258020,1749051048629,-440.0,0.00018904,2]
[364258022,1749051048639,-440.0,0.00018904,2]
[364258024,1749051048649,-888.49,0.00018904,2]
[364258026,1749051048659,-1592.06,0.00018904,2]
[364258028,1749051048670,-440.0,0.00018904,2]
[364258030,1749051048680,-639.54,0.00018904,2]
[364258032,1749051048689,-3971.98,0.00018904,2]
[364258034,1749051048699,-2882.92,0.00018904,2]
[364258036,1749051048708,-3615.91,0.00018904,2]
[364258038,1749051048717,-3674.45,0.00018904,2]
[364258040,1749051048727,-440.0,0.00018904,2]
[364258042,1749051048737,-705.08,0.00018904,2]
[364258044,1749051048746,-611.86,0.00018904,2]
[364258046,1749051048756,-440.0,0.00018904,2]
[364258048,1749051048765,-440.0,0.00018904,2]
[364258050,1749051048775,-549.34388845,0.00018904,2]
[364258052,1749051048785,-892.16,0.00018904,2]
[364258054,1749051048795,-440.0,0.00018904,2]
[364258056,1749051048806,-440.0,0.00018904,2]
[364258058,1749051048818,-530.99,0.00018904,2]
[364258060,1749051048827,-440.0,0.00018904,2]
[364258062,1749051048838,-1055.45,0.00018904,2]
[364258064,1749051048849,-440.0,0.00018904,2]
[364258066,1749051048859,-440.0,0.00018904,2]
[364258068,1749051048870,-538.75041011,0.00018904,2]
[364258070,1749051048880,-514.25,0.00018904,2]
[364258072,1749051048890,-600.44,0.00018904,2]
[364258074,1749051048901,-3430.68,0.00018904,2]
[364258076,1749051048914,-687.21,0.00018904,2]
[364258078,1749051048926,-649.54,0.00018904,2]
[364258080,1749051048938,-564.16,0.00018904,2]
[364258082,1749051048949,-1711.74,0.00018904,2]
[364258084,1749051048959,-440.0,0.00018904,2]
[364258086,1749051048970,-2000.0,0.00019044,2]
[364258088,1749051048980,-2000.0,0.00019044,2]
[364258090,1749051048990,-2339.57047473,0.00019107,2]
[364258092,1749051049002,-617.26,0.00019178,2]
[364258094,1749051049012,-907.87,0.00019178,2]
[364258097,1749051049022,-440.0,0.00019178,2]
[364258099,1749051049033,-727.8,0.00019178,2]
[364258101,1749051049043,-1061.63,0.00019178,2]
[364258102,1749051049052,-440.0,0.00019178,2]
[364258104,1749051049063,-1125.54,0.00019178,2]
[364258106,1749051049074,-440.0,0.00019178,2]
[364258109,1749051049084,-440.0,0.00019178,2]
[364258111,1749051049095,-440.0,0.00019178,2]
[364258112,1749051049105,-440.0,0.00019178,2]
[364258114,1749051049115,-440.0,0.00019178,2]
[364258116,1749051049124,-440.0,0.00019178,2]
[364258118,1749051049135,-393.69700413,0.00019178,2]
[364258120,1749051049145,-440.0,0.00019178,2]
[364258122,1749051049155,-527.96,0.00019178,2]
[364258124,1749051049165,-440.0,0.00019178,2]
[364258126,1749051049175,-2224.68,0.00019178,2]
[364258128,1749051049184,-440.0,0.00019178,2]
[364258131,1749051049196,-440.0,0.00019178,2]
[364258133,1749051049206,-888.49,0.00019178,2]
[364258135,1749051049216,-1592.06,0.00019178,2]
[364258137,1749051049227,-440.0,0.00019178,2]
[364258139,1749051049237,-639.54,0.00019178,2]
[364258141,1749051049248,-3971.98,0.00019178,2]
[364258143,1749051049261,-3615.91,0.00019178,2]
[364258145,1749051049272,-2882.92,0.00019178,2]
[364258147,1749051049283,-3674.45,0.00019178,2]
[364258149,1749051049294,-440.0,0.00019178,2]
[364258151,1749051049305,-705.08,0.00019178,2]
[364258153,1749051049324,-611.86,0.00019178,2]
[364258155,1749051049338,-569.11126794,0.00019178,2]
[364258157,1749051049348,-440.0,0.00019178,2]
[364258159,1749051049358,-892.16,0.00019178,2]
[364258161,1749051049368,-440.0,0.00019178,2]
[364258163,1749051049378,-440.0,0.00019178,2]
[364258165,1749051049387,-530.99,0.00019178,2]
[364258167,1749051049397,-253.38,0.00019178,2]
[364258169,1749051049407,-1055.45,0.00019178,2]
[364258171,1749051049416,-440.0,0.00019178,2]
[364258173,1749051049425,-285.41966548,0.00019178,2]
[364258175,1749051049435,-514.25,0.00019178,2]
[364258177,1749051049446,-600.44,0.00019178,2]
[364258179,1749051049455,-3430.68,0.00019178,2]
[364258181,1749051049465,-687.21,0.00019178,2]
[364258182,1749051049474,-649.54,0.00019178,2]
[364258184,1749051049484,-564.16,0.00019178,2]
[364258187,1749051049494,-1711.74,0.00019178,2]
[364258189,1749051049503,-440.0,0.00019178,2]
[364258190,1749051049513,-500.0,0.00019178,2]
[364258193,1749051049524,-355.44340299,0.00019178,2]
[364258194,1749051049533,-534.77780225,0.00019178,2]
[364258196,1749051049543,-534.77780225,0.00019178,2]
[364258198,1749051049553,-534.77780225,0.00019178,2]
[364258200,1749051049562,-534.77780225,0.00019178,2]
[364258202,1749051049574,-534.77780225,0.00019178,2]
[364258204,1749051049583,-534.77780225,0.00019178,2]
[364258206,1749051049594,-534.77780225,0.00019178,2]